bitfinex/quotes_BTCUSD_20220307
["timestamp","ask_amount","ask_price","bid_price","bid_amount"]
[1646616559680,0.35,38467.0,38466.0,6.562e-05]
[1646616560580,0.065024,38466.0,38463.0,0.07834]
[1646616561784,0.065024,38466.0,38463.0,0.07734]
[1646616562727,0.05,38464.0,38463.0,0.07734]
[1646616563128,0.05,38464.0,38458.0,0.07213262]
[1646616563329,0.05,38464.0,38456.0,0.42234462]
[1646616563527,0.05,38464.0,38456.0,0.21182198]
[1646616564128,0.05,38464.0,38456.0,0.19884198]
[1646616564328,0.05,38464.0,38457.0,0.21606218]
[1646616564931,0.05,38464.0,38457.0,1.00976218]
[1646616565229,0.05,38464.0,38458.0,0.1]
[1646616565428,0.05,38464.0,38458.0,0.95879]
[1646616565628,0.05,38464.0,38462.0,0.15473016]
[1646616568274,0.05,38464.0,38461.0,8.147e-05]
[1646616568472,0.00182065,38463.0,38461.0,8.147e-05]
[1646616568874,0.00182065,38463.0,38458.0,0.06509]
[1646616569071,0.00182065,38463.0,38460.0,8.147e-05]
[1646616569273,0.00182065,38463.0,38460.0,0.05218147]
[1646616571232,0.00182065,38463.0,38460.0,0.0521]
[1646616571434,0.00182065,38463.0,38460.0,0.05218147]
[1646616572436,0.00182065,38463.0,38460.0,0.0521]
[1646616572734,0.00182065,38463.0,38460.0,0.05217231]
[1646616573635,0.00182065,38463.0,38460.0,0.0521]
[1646616573834,0.00182065,38463.0,38460.0,0.05217231]
[1646616574279,0.05182065,38464.0,38460.0,0.05217231]
[1646616574479,0.05182065,38464.0,38462.0,0.00021954]
[1646616575581,0.05182065,38464.0,38461.0,7.23e-05]
[1646616575980,0.05182065,38464.0,38460.0,0.34938599]
[1646616576182,0.05182065,38464.0,38463.0,0.30470501]
[1646616576384,0.05182065,38464.0,38463.0,0.08356366]
[1646616576584,0.05182065,38464.0,38463.0,0.18356366]
[1646616579230,0.00182065,38464.0,38463.0,0.18356366]
[1646616580128,0.00182065,38464.0,38463.0,0.18377397]
[1646616583378,0.00182065,38464.0,38463.0,0.10021031]
[1646616584880,0.00182065,38464.0,38463.0,0.00021031]
[1646616585333,0.00182065,38464.0,38463.0,0.08377397]
[1646616585723,0.00182065,38464.0,38463.0,0.18377397]
[1646616586325,0.00182065,38464.0,38463.0,0.23587397]
[1646616588023,0.00182065,38464.0,38463.0,0.27477838]
[1646616588724,0.00182065,38464.0,38463.0,0.23587397]
[1646616589181,0.18431169,38464.0,38463.0,0.23587397]
[1646616592388,0.00182065,38464.0,38463.0,0.23587397]
[1646616593220,0.00182065,38464.0,38463.0,0.1]
[1646616593421,0.00182065,38464.0,38462.0,0.08564771]
[1646616593621,0.00182065,38464.0,38463.0,0.0521]
[1646616594825,0.00182065,38464.0,38463.0,0.05256161]
[1646616595028,0.00182065,38464.0,38463.0,0.26261682]
[1646616595225,0.00182065,38464.0,38463.0,2.27202281]
[1646616595427,0.14447125,38471.0,38465.0,0.01497367]
[1646616595628,0.14447125,38471.0,38469.0,0.2]
[1646616595629,0.14007125,38471.0,38469.0,0.2]
[1646616595826,0.14007125,38471.0,38470.0,0.92708973]
[1646616596025,0.14007125,38471.0,38470.0,1.13704698]
[1646616596228,0.14007125,38471.0,38470.0,1.18308973]
[1646616596478,0.14007125,38471.0,38470.0,0.38938973]
[1646616596680,0.14007125,38471.0,38470.0,0.58482736]
[1646616596878,0.14007125,38471.0,38470.0,0.78199288]
[1646616597078,0.14007125,38471.0,38470.0,0.73199288]
[1646616597280,0.14007125,38471.0,38470.0,1.70441654]
[1646616597477,0.14007125,38471.0,38470.0,1.54841654]
[1646616597880,0.14007125,38471.0,38470.0,1.36866482]
[1646616598690,0.14007125,38471.0,38470.0,0.57496482]
[1646616599084,0.14007125,38471.0,38470.0,0.3777993]
[1646616599784,0.14007125,38471.0,38470.0,0.38019221]
[1646616599983,0.14007125,38471.0,38470.0,0.28019221]
[1646616600229,0.14019726,38471.0,38470.0,0.38039004]
[1646616603132,0.14019726,38471.0,38470.0,0.28039004]
[1646616603331,0.14019726,38471.0,38470.0,0.38039004]
[1646616603732,0.14019726,38471.0,38470.0,1.17409004]
[1646616603733,0.14406426,38471.0,38470.0,1.17409004]
[1646616604174,0.14406426,38471.0,38470.0,1.37125556]
[1646616606472,0.14406426,38471.0,38470.0,1.83125556]
[1646616607925,0.14406426,38471.0,38470.0,2.56121732]
[1646616609024,0.14406426,38471.0,38470.0,3.06121732]
[1646616609226,0.25711782,38471.0,38470.0,3.06121732]
[1646616609426,0.25711782,38471.0,38470.0,3.28654934]
[1646616610026,0.25699181,38471.0,38470.0,3.28661999]
[1646616611675,0.11692056,38471.0,38470.0,3.28661999]
[1646616614778,0.11681745,38471.0,38470.0,3.28661999]
[1646616615424,0.0011,38476.0,38471.0,1.09886253]
[1646616615628,0.0011,38476.0,38474.0,0.19215]
[1646616615825,0.0011,38476.0,38475.0,0.0521]
[1646616616626,0.0011,38476.0,38473.0,0.19716552]
[1646616616829,0.31342378,38476.0,38472.0,0.19716552]
[1646616617026,0.31342378,38476.0,38471.0,0.04886253]
[1646616617027,0.31342378,38476.0,38471.0,0.24602805]
[1646616617229,0.02602,38475.0,38471.0,0.24602805]
[1646616617427,0.10175962,38475.0,38471.0,0.04886253]
[1646616617727,0.02602,38473.0,38471.0,0.04886253]
[1646616618135,0.091036,38473.0,38471.0,0.04886253]
[1646616618988,0.391036,38473.0,38471.0,0.04886253]
[1646616619583,0.32602,38472.0,38471.0,0.04886253]
[1646616620182,0.37602,38472.0,38471.0,0.04886253]
[1646616620583,0.07602,38472.0,38471.0,0.04886253]
[1646616623125,0.13326977,38475.0,38474.0,0.12244629]
[1646616625029,0.18326977,38475.0,38474.0,0.12244629]
[1646616625830,0.180036,38475.0,38474.0,0.12244629]
[1646616626680,0.02602,38474.0,38471.0,0.05175298]
[1646616627280,0.206056,38475.0,38474.0,0.23398]
[1646616628682,0.02602,38474.0,38471.0,0.05175298]
[1646616629282,0.156056,38474.0,38471.0,0.05175298]
[1646616629483,0.07602,38473.0,38471.0,0.05175298]
[1646616629883,0.141037,38473.0,38471.0,0.05175298]
[1646616630082,0.141037,38473.0,38471.0,0.05149163]
[1646616630328,0.141037,38473.0,38471.0,0.04886253]
[1646616630831,0.115017,38473.0,38471.0,0.04886253]
[1646616631032,0.141037,38473.0,38471.0,0.04886253]
[1646616631230,0.115017,38473.0,38471.0,0.04886253]
[1646616632030,0.05,38473.0,38471.0,0.34886253]
[1646616632229,0.00422121,38475.0,38472.0,0.30026001]
[1646616632537,0.00422121,38475.0,38473.0,0.4521]
[1646616632728,0.00422121,38475.0,38474.0,0.1521]
[1646616632928,0.00422121,38475.0,38474.0,0.0521]
[1646616634080,0.00422121,38475.0,38474.0,0.26483802]
[1646616634480,0.00422121,38475.0,38474.0,0.0521]
[1646616635081,0.05422121,38475.0,38474.0,0.0521]
[1646616635284,0.00422121,38475.0,38474.0,0.0521]
[1646616635683,0.05422121,38475.0,38474.0,0.0521]
[1646616635985,0.30422121,38475.0,38472.0,0.00026128]
[1646616636187,0.00293678,38473.0,38472.0,0.00288802]
[1646616636982,0.00293678,38473.0,38471.0,0.04886253]
[1646616636983,0.01619251,38473.0,38471.0,0.04886253]
[1646616637185,0.28481334,38472.0,38471.0,0.04886253]
[1646616637385,0.32481334,38472.0,38471.0,0.04886253]
[1646616638027,0.32602,38472.0,38471.0,0.04886253]
[1646616639731,0.09221251,38473.0,38471.0,0.04886253]
[1646616639929,0.01341289,38472.0,38471.0,0.04886253]
[1646616640229,0.09293328,38473.0,38471.0,0.04886253]
[1646616640429,0.06691328,38473.0,38472.0,0.00026128]
[1646616640830,0.25417073,38473.0,38472.0,0.00026128]
[1646616641679,0.04293328,38473.0,38472.0,0.00026128]
[1646616642279,0.04293328,38473.0,38471.0,0.03937772]
[1646616644786,0.04293328,38473.0,38472.0,0.00028336]
[1646616645631,0.04293328,38473.0,38472.0,0.00258176]
[1646616646432,0.25417073,38473.0,38472.0,0.00258176]
[1646616646634,0.30417073,38473.0,38472.0,0.00258176]
[1646616647633,0.29019423,38473.0,38472.0,0.26258176]
[1646616648235,0.29019423,38473.0,38472.0,0.15238168]
[1646616650178,0.29019423,38473.0,38472.0,0.15494197]
[1646616652088,0.59019423,38473.0,38472.0,0.15494197]
[1646616652956,0.56417423,38473.0,38472.0,0.15494197]
[1646616653152,0.26417423,38473.0,38472.0,0.00101775]
[1646616653351,0.26417423,38473.0,38471.0,0.03937772]
[1646616653749,0.29019423,38473.0,38471.0,0.03937772]
[1646616653951,0.26417423,38473.0,38471.0,0.03937772]
[1646616654354,0.21123745,38472.0,38471.0,0.03937772]
[1646616656154,0.40983771,38472.0,38471.0,0.03937772]
[1646616656353,0.23725745,38472.0,38471.0,0.03937772]
[1646616656610,0.47602,38471.0,38470.0,0.37920248]
[1646616656801,0.28723618,38471.0,38470.0,0.37920248]
[1646616657004,0.42602,38470.0,38463.0,0.01298]
[1646616657202,0.5025573,38469.0,38463.0,0.11298]
[1646616657601,0.5025573,38469.0,38464.0,0.26]
[1646616657802,0.01439034,38467.0,38464.0,0.26]
[1646616658004,0.01679685,38466.0,38464.0,0.26]
[1646616658231,0.01679685,38466.0,38463.0,0.01298]
[1646616658232,0.01643834,38464.0,38463.0,0.01298]
[1646616658507,0.01643834,38464.0,38462.0,7.066e-05]
[1646616658508,0.01405535,38463.0,38462.0,7.066e-05]
[1646616658708,1.07602,38462.0,38457.0,0.10980366]
[1646616658904,0.51128882,38461.0,38452.0,0.20975341]
[1646616659107,0.2308823,38454.0,38452.0,0.10067425]
[1646616659309,0.412842,38452.0,38447.0,0.26338449]
[1646616659508,0.412842,38452.0,38446.0,0.31637959]
[1646616659509,0.958028,38451.0,38446.0,0.26338449]
[1646616659704,0.958028,38451.0,38442.0,0.23904534]
[1646616659905,0.02602,38449.0,38442.0,0.23904534]
[1646616660104,0.01346152,38448.0,38439.0,0.26338449]
[1646616660344,0.01346152,38448.0,38438.0,0.19650892]
[1646616660345,0.39783144,38442.0,38438.0,0.19650892]
[1646616660544,0.32602,38441.0,38438.0,0.19650892]
[1646616660745,0.25304217,38442.0,38436.0,0.001]
[1646616660947,0.0141159,38441.0,38436.0,0.004]
[1646616661748,0.0141159,38441.0,38438.0,0.22974676]
[1646616662150,0.0141159,38441.0,38439.0,0.17765159]
[1646616663151,0.24000001,38440.0,38439.0,0.17765159]
[1646616663349,0.1102069,38440.0,38439.0,0.17765159]
[1646616665394,0.1102069,38440.0,38438.0,0.00031276]
[1646616665589,0.11313207,38440.0,38438.0,0.00314332]
[1646616666188,0.11313207,38440.0,38438.0,0.00306215]
[1646616668842,0.11313207,38440.0,38438.0,0.09306215]
[1646616669445,0.85,38437.0,38428.0,0.001]
[1646616669649,0.82,38439.0,38428.0,0.001]
[1646616669650,0.03999029,38434.0,38428.0,0.001]
[1646616669848,0.03999029,38434.0,38431.0,0.002]
[1646616669849,0.862842,38433.0,38431.0,0.002]
[1646616670044,0.712842,38432.0,38424.0,0.001]
[1646616670246,0.22823645,38424.0,38423.0,0.001]
[1646616670545,0.05,38424.0,38423.0,0.001]
[1646616670945,0.00058356,38424.0,38423.0,0.001]
[1646616671143,0.00058356,38424.0,38423.0,0.00126037]
[1646616671495,0.00058356,38424.0,38423.0,0.47914445]
[1646616671695,0.00058356,38424.0,38423.0,0.57914445]
[1646616672099,0.00058356,38424.0,38423.0,0.1]
[1646616672895,0.00058356,38424.0,38421.0,0.00332531]
[1646616673096,0.00058356,38424.0,38423.0,0.13973963]
[1646616673296,0.00058356,38424.0,38423.0,0.23973963]
[1646616673696,0.00058356,38424.0,38423.0,0.1]
[1646616674096,0.01340783,38424.0,38423.0,0.1]
[1646616674497,0.01340783,38424.0,38421.0,0.00332531]
[1646616674498,0.00058356,38425.0,38421.0,0.00332531]
[1646616674698,0.00015342,38424.0,38423.0,0.00021358]
[1646616675345,0.00305844,38424.0,38423.0,0.00021358]
[1646616676147,0.00305844,38424.0,38419.0,0.28224991]
[1646616676346,0.00305844,38424.0,38419.0,0.09661884]
[1646616676746,0.00305844,38424.0,38417.0,0.02702]
[1646616677248,0.00305844,38424.0,38421.0,0.1962796]
[1646616677453,0.06814144,38424.0,38417.0,0.001]
[1646616677652,0.00058356,38423.0,38417.0,0.001]
[1646616677850,0.00058356,38423.0,38418.0,0.2]
[1646616678052,0.00058356,38423.0,38420.0,0.35]
[1646616678250,0.00058356,38423.0,38422.0,2.71934348]
[1646616678451,5.61e-05,38423.0,38422.0,3.03388474]
[1646616678749,5.61e-05,38423.0,38422.0,3.13388474]
[1646616678989,5.61e-05,38423.0,38422.0,3.51677418]
[1646616679189,5.61e-05,38423.0,38422.0,0.9974307]
[1646616679390,5.61e-05,38423.0,38422.0,1.2124947]
[1646616679691,5.61e-05,38423.0,38422.0,1.21275499]
[1646616679990,0.00305844,38424.0,38423.0,1.86972]
[1646616679991,0.00285278,38424.0,38423.0,1.86972]
[1646616680198,0.51449129,38434.0,38424.0,0.81972]
[1646616680393,0.51449129,38434.0,38428.0,0.14051686]
[1646616680394,0.01449129,38434.0,38428.0,0.14051686]
[1646616680589,0.01449129,38434.0,38432.0,0.31449686]
[1646616680790,0.01449129,38434.0,38433.0,0.26659686]
[1646616682592,0.33797297,38435.0,38433.0,0.26659686]
[1646616682842,0.33797297,38435.0,38433.0,0.0521]
[1646616683239,0.05,38434.0,38433.0,0.0521]
[1646616683441,0.05,38434.0,38433.0,0.11451921]
[1646616683645,0.05,38434.0,38427.0,0.007]
[1646616683646,0.06508426,38433.0,38427.0,0.007]
[1646616683843,0.27226845,38423.0,38421.0,0.00020484]
[1646616684040,0.065097,38429.0,38422.0,0.075942]
[1646616684041,0.3,38427.0,38422.0,0.075942]
[1646616684240,0.3,38427.0,38421.0,0.00020484]
[1646616684641,0.20651224,38422.0,38420.0,7.078e-05]
[1646616684841,0.20651224,38422.0,38421.0,0.075942]
[1646616685241,0.25651224,38422.0,38420.0,7.078e-05]
[1646616685446,1.05,38418.0,38416.0,0.001]
[1646616685642,0.32602,38417.0,38415.0,0.001]
[1646616685847,0.02602,38416.0,38415.0,0.001]
[1646616686043,1.05,38416.0,38401.0,0.4004]
[1646616686241,0.16414264,38409.0,38402.0,0.20586612]
[1646616686501,0.16414264,38409.0,38402.0,0.46823683]
[1646616686693,0.05,38409.0,38402.0,0.46823683]
[1646616687191,0.05,38411.0,38403.0,0.1]
[1646616687392,0.05,38411.0,38402.0,0.41823683]
[1646616687393,0.115125,38411.0,38402.0,0.41823683]
[1646616687603,0.065125,38411.0,38403.0,0.1]
[1646616687794,0.05,38410.0,38408.0,0.17992275]
[1646616688593,0.05,38410.0,38408.0,0.42593269]
[1646616688796,0.565097,38417.0,38410.0,0.81972]
[1646616688797,0.5,38417.0,38410.0,0.81972]
[1646616688995,0.5,38417.0,38414.0,0.075942]
[1646616689195,0.5,38417.0,38416.0,0.075942]
[1646616689394,0.5,38417.0,38416.0,0.101962]
[1646616689596,0.16635045,38428.0,38417.0,0.0132851]
[1646616689797,0.16635045,38428.0,38418.0,0.07812]
[1646616689993,0.5,38429.0,38424.0,0.37226207]
[1646616690243,0.065073,38430.0,38424.0,0.37226207]
[1646616690244,0.065073,38430.0,38425.0,0.1521]
[1646616690444,0.065073,38430.0,38426.0,0.22433397]
[1646616690648,0.565073,38430.0,38426.0,0.27643397]
[1646616691049,0.5,38430.0,38428.0,0.2]
[1646616691246,0.17732259,38437.0,38429.0,0.05236026]
[1646616691450,0.17732259,38437.0,38429.0,0.0521]
[1646616691645,0.5,38436.0,38430.0,0.18442067]
[1646616691847,0.5,38436.0,38431.0,0.0521]
[1646616692046,0.5,38436.0,38435.0,0.075942]
[1646616693047,0.55,38436.0,38435.0,0.075942]
[1646616693446,0.55,38436.0,38432.0,0.22056883]
[1646616693646,0.55,38436.0,38433.0,0.0521]
[1646616693647,0.05,38436.0,38433.0,0.0521]
[1646616694188,0.22732259,38437.0,38433.0,0.0521]
[1646616694591,0.22746844,38437.0,38433.0,0.0521]
[1646616695391,0.00014585,38437.0,38433.0,0.0521]
[1646616696493,0.00014585,38437.0,38430.0,0.3318944]
[1646616696792,0.00014585,38437.0,38431.0,0.0521]
[1646616697394,0.19935616,38434.0,38431.0,0.0521]
[1646616697594,0.31442516,38434.0,38431.0,0.0521]
[1646616698445,0.31442516,38434.0,38431.0,0.1521]
[1646616700344,0.31442516,38434.0,38432.0,0.00018482]
[1646616700545,0.31442516,38434.0,38433.0,0.0521]
[1646616701789,0.115069,38434.0,38433.0,0.0521]
[1646616702389,0.115069,38434.0,38433.0,0.05236022]
[1646616702987,0.115069,38434.0,38433.0,0.23392379]
[1646616704790,0.04627952,38434.0,38433.0,0.23410087]
[1646616705238,0.00302435,38434.0,38433.0,0.23153726]
[1646616706341,0.06809335,38434.0,38433.0,0.23153726]
[1646616708241,0.06809335,38434.0,38433.0,1.02523726]
[1646616708441,0.06809335,38434.0,38433.0,1.32523726]
[1646616708640,0.06809335,38434.0,38433.0,1.42523726]
[1646616709785,0.06809335,38434.0,38433.0,1.12523726]
[1646616710183,0.06809335,38434.0,38433.0,1.42533885]
[1646616710583,0.06809335,38434.0,38433.0,1.12533885]
[1646616710783,0.06809335,38434.0,38433.0,0.33137863]
[1646616710986,0.06809335,38434.0,38433.0,0.32637863]
[1646616711985,0.06799335,38434.0,38432.0,0.70002927]
[1646616712187,0.06799335,38434.0,38433.0,0.1521]
[1646616712594,0.11799335,38434.0,38433.0,0.1521]
[1646616713441,2.25133421,38461.0,38433.0,0.1521]
[1646616713641,0.695209,38444.0,38433.0,0.1521]
[1646616713842,0.065064,38436.0,38433.0,0.1521]
[1646616714643,0.195206,38435.0,38433.0,0.1521]
[1646616714841,0.0001454,38434.0,38433.0,0.15237867]
[1646616715040,0.0001454,38434.0,38432.0,0.70002927]
[1646616715241,0.0501454,38434.0,38433.0,0.1521]
[1646616715443,0.05260703,38434.0,38433.0,0.1546125]
[1646616715642,0.05260703,38434.0,38433.0,0.0521]
[1646616716242,0.05260703,38434.0,38432.0,0.70002927]
[1646616716490,0.05260703,38434.0,38433.0,0.0521]
[1646616716792,0.05260703,38434.0,38432.0,0.36173427]
[1646616717092,0.05260703,38434.0,38433.0,0.0521]
[1646616717388,0.05260703,38434.0,38432.0,0.02342827]
[1646616717592,0.26600881,38434.0,38432.0,0.02342827]
[1646616717790,0.26600881,38434.0,38429.0,0.36204061]
[1646616718588,0.26600881,38434.0,38429.0,0.20974767]
[1646616719188,0.26600881,38434.0,38429.0,0.20474767]
[1646616719589,0.05260703,38434.0,38429.0,0.20474767]
[1646616719990,0.05260703,38434.0,38428.0,0.66181921]
[1646616720249,0.05260703,38434.0,38433.0,0.00225373]
[1646616720449,0.05260703,38434.0,38433.0,0.05461524]
[1646616720848,0.05260703,38434.0,38433.0,0.05487545]
[1646616722748,0.05260703,38434.0,38433.0,0.07568179]
[1646616722947,0.05260703,38434.0,38433.0,0.12778179]
[1646616723147,0.05260703,38434.0,38431.0,0.17350087]
[1646616723351,0.05260703,38434.0,38433.0,0.00026019]
[1646616723551,0.05260703,38434.0,38433.0,0.05236019]
[1646616723751,0.05260703,38434.0,38433.0,0.45354796]
[1646616723997,0.05260703,38434.0,38433.0,0.39016575]
[1646616724396,0.05260703,38434.0,38433.0,2.25029385]
[1646616724599,0.05260703,38434.0,38433.0,2.25055536]
[1646616725198,0.05260703,38434.0,38433.0,2.25280909]
[1646616725398,0.05260703,38434.0,38433.0,2.24780909]
[1646616727201,0.05260703,38434.0,38433.0,1.95916915]
[1646616727601,0.05260703,38434.0,38433.0,1.56884415]
[1646616727853,0.05260703,38434.0,38433.0,1.62094415]
[1646616728056,0.05260703,38434.0,38433.0,0.1562893]
[1646616728253,0.04149464,38434.0,38433.0,0.01217704]
[1646616728650,0.04149464,38434.0,38433.0,0.01217688]
[1646616729650,0.04149464,38434.0,38433.0,0.80587688]
[1646616730152,0.04149464,38434.0,38433.0,0.80109084]
[1646616730354,0.04149464,38434.0,38433.0,0.85319084]
[1646616731162,0.04149464,38434.0,38433.0,0.05949084]
[1646616731598,0.04149464,38434.0,38433.0,0.0071292]
[1646616732199,0.04149464,38434.0,38429.0,0.005]
[1646616732397,0.04149464,38434.0,38430.0,0.0521]
[1646616732994,0.017738,38433.0,38430.0,0.0521]
[1646616733195,0.01518508,38432.0,38430.0,0.0521]
[1646616733394,0.04149464,38434.0,38431.0,0.11450282]
[1646616733594,0.04149464,38434.0,38430.0,0.0521]
[1646616734299,0.04149464,38434.0,38431.0,2.43084037]
[1646616734494,0.04149464,38434.0,38432.0,0.0521]
[1646616734696,0.04149464,38434.0,38433.0,0.00049986]
[1646616734895,0.04149464,38434.0,38433.0,0.05259986]
[1646616735548,0.04149464,38434.0,38433.0,0.2524379]
[1646616737156,0.00218703,38434.0,38433.0,1.49926806]
[1646616737350,0.565039,38443.0,38433.0,1.74926806]
[1646616737550,0.5,38443.0,38441.0,0.7937]
[1646616737753,0.5,38443.0,38442.0,0.9458]
[1646616737949,0.5,38443.0,38442.0,0.94606012]
[1646616738149,0.06503,38447.0,38442.0,1.25206012]
[1646616738351,0.0011,38450.0,38449.0,0.22117071]
[1646616738549,0.0011,38450.0,38449.0,0.16653284]
[1646616738748,0.0011,38450.0,38449.0,0.16153284]
[1646616738984,0.0011,38450.0,38449.0,0.04736007]
[1646616739586,0.0011,38450.0,38449.0,0.84106007]
[1646616739785,0.0011,38450.0,38449.0,1.09706007]
[1646616739986,0.26393575,38453.0,38449.0,1.09706007]
[1646616740288,0.26393575,38453.0,38452.0,1.06410904]
[1646616740487,0.26393575,38453.0,38452.0,1.11620904]
[1646616741786,0.26393575,38453.0,38452.0,1.41620904]
[1646616741787,0.31393575,38453.0,38452.0,1.41620904]
[1646616741986,0.31393575,38453.0,38452.0,1.11620904]
[1646616743042,0.31393575,38453.0,38452.0,0.32250904]
[1646616743249,0.31393575,38453.0,38452.0,0.36246612]
[1646616743842,0.31393575,38453.0,38452.0,1.15616612]
[1646616744042,0.31393575,38453.0,38452.0,1.45616612]
[1646616744644,0.31393575,38453.0,38452.0,1.34233114]
[1646616745047,0.31393575,38453.0,38452.0,1.04233114]
[1646616745452,0.31597668,38453.0,38452.0,1.04014858]
[1646616746895,0.05204093,38453.0,38452.0,1.04014858]
[1646616747497,0.05204093,38455.0,38452.0,1.44014858]
[1646616747699,0.00046176,38460.0,38457.0,0.9447]
[1646616747905,0.0011,38463.0,38459.0,1.70635642]
[1646616748100,0.0011,38463.0,38462.0,0.7937]
[1646616748297,0.0011,38463.0,38462.0,0.94606001]
[1646616749498,0.0011,38463.0,38462.0,0.94539266]
[1646616749699,0.0011,38463.0,38462.0,1.24539266]
[1646616750099,0.0011,38463.0,38462.0,1.24039266]
[1646616751348,0.0011,38463.0,38462.0,1.27879499]
[1646616752751,0.0011,38463.0,38462.0,1.12979499]
[1646616753551,0.01713414,38463.0,38462.0,1.12979499]
[1646616754292,0.01213414,38463.0,38462.0,1.12979499]
[1646616754493,0.01213414,38463.0,38462.0,1.12479499]
[1646616754693,0.01213414,38463.0,38462.0,1.42552379]
[1646616755096,0.01557543,38463.0,38462.0,1.42786835]
[1646616755296,0.00344129,38463.0,38462.0,1.42786835]
[1646616755598,0.0011,38476.0,38471.0,0.78303265]
[1646616755795,0.0011,38476.0,38472.0,1.89484767]
[1646616755996,0.0011,38476.0,38472.0,1.64738108]
[1646616756593,0.0011,38476.0,38473.0,0.00025994]
[1646616756798,0.0011,38481.0,38473.0,0.00025994]
[1646616756799,0.0011,38486.0,38479.0,0.151]
[1646616756997,0.0011,38486.0,38485.0,1.58513265]
[1646616757196,0.0022,38489.0,38485.0,1.73749246]
[1646616757395,0.0022,38489.0,38488.0,0.00025981]
[1646616757596,0.0011,38494.0,38488.0,0.83539246]
[1646616757854,1.296,38518.0,38499.0,0.45]
[1646616757855,0.5011,38510.0,38499.0,0.45]
[1646616758053,0.5011,38510.0,38495.0,0.93403265]
[1646616758054,0.0011,38518.0,38510.0,1.05]
[1646616758255,0.0011,38518.0,38509.0,1.58513265]
[1646616758256,0.02803813,38533.0,38522.0,1.05]
[1646616758453,0.02803813,38533.0,38523.0,1.78623265]
[1646616758659,0.02803813,38533.0,38527.0,0.12539683]
[1646616758849,0.02803813,38533.0,38531.0,0.41116246]
[1646616759148,0.02803813,38533.0,38532.0,0.46297031]
[1646616759348,0.02803813,38533.0,38532.0,0.26407031]
[1646616759750,0.32803813,38533.0,38532.0,0.16627747]
[1646616759952,0.53022647,38533.0,38532.0,0.16627747]
[1646616760252,0.76945329,38533.0,38532.0,0.16627747]
[1646616760449,0.46945329,38533.0,38532.0,0.16627747]
[1646616760650,0.05405813,38533.0,38532.0,0.16627747]
[1646616761500,0.20364813,38533.0,38529.0,0.006]
[1646616761700,0.20364813,38533.0,38524.0,0.026]
[1646616761701,0.02602,38527.0,38524.0,0.026]
[1646616761900,0.02602,38527.0,38521.0,0.0542318]
[1646616762100,0.02602,38527.0,38522.0,0.0521]
[1646616762101,0.24110176,38527.0,38522.0,0.0521]
[1646616762300,0.02602,38527.0,38522.0,0.0521]
[1646616762498,9.641e-05,38526.0,38522.0,0.0521]
[1646616762698,0.04968641,38527.0,38525.0,0.26959596]
[1646616762900,0.04968641,38527.0,38526.0,0.0521]
[1646616763104,0.04968641,38527.0,38526.0,0.35235955]
[1646616763300,0.00038559,38532.0,38526.0,0.35235955]
[1646616763598,0.02762813,38533.0,38530.0,0.11420266]
[1646616763803,0.0011,38535.0,38532.0,0.90787895]
[1646616764000,0.0011,38535.0,38533.0,1.13356127]
[1646616764199,0.68409587,38534.0,38533.0,1.23356127]
[1646616764400,0.1206,38547.0,38533.0,1.23356127]
[1646616764401,0.02602,38549.0,38536.0,0.7937]
[1646616764602,0.4604,38558.0,38540.0,0.0126892]
[1646616764802,0.6482,38560.0,38547.0,0.20996026]
[1646616764998,0.6482,38560.0,38542.0,0.6511]
[1646616764999,0.00048574,38550.0,38548.0,0.0521]
[1646616765272,0.00048574,38550.0,38549.0,0.2418233]
[1646616765460,0.01327791,38554.0,38550.0,1.05]
[1646616765658,0.01302353,38553.0,38551.0,0.3521]
[1646616765858,0.23184998,38566.0,38552.0,0.30025935]
[1646616766057,0.2029646,38563.0,38553.0,0.0521]
[1646616766260,0.2029646,38563.0,38557.0,0.11411232]
[1646616766561,0.17645767,38562.0,38561.0,0.00025937]
[1646616766757,0.17145767,38562.0,38561.0,0.00025937]
[1646616767060,0.40117913,38562.0,38561.0,0.00025937]
[1646616767261,0.19130864,38563.0,38558.0,0.0521]
[1646616767457,0.15,38559.0,38558.0,0.0521]
[1646616767656,0.15,38559.0,38558.0,0.05235936]
[1646616768263,0.2,38559.0,38558.0,0.05235936]
[1646616769500,0.195,38559.0,38558.0,0.05235936]
[1646616769900,0.195,38559.0,38558.0,0.03650621]
[1646616770302,0.195,38559.0,38557.0,0.005]
[1646616770501,0.259875,38559.0,38546.0,0.0521]
[1646616770702,0.259875,38559.0,38540.0,0.2499]
[1646616770703,0.129746,38553.0,38542.0,0.1]
[1646616770999,0.129746,38553.0,38540.0,0.2499]
[1646616771000,0.15,38551.0,38548.0,0.00025939]
[1646616771199,0.15,38551.0,38550.0,0.00025939]
[1646616771200,0.3143533,38551.0,38550.0,0.00025939]
[1646616771400,0.3643533,38551.0,38550.0,0.00025939]
[1646616772003,0.05,38551.0,38550.0,0.00025939]
[1646616772883,0.045,38551.0,38550.0,0.00025939]
[1646616774679,0.045,38551.0,38550.0,0.00059752]
[1646616775278,0.045,38551.0,38550.0,0.11366319]
[1646616776698,0.045,38551.0,38550.0,0.11367351]
[1646616777098,0.045,38551.0,38550.0,0.00025947]
[1646616777303,0.045,38551.0,38549.0,0.007]
[1646616777304,0.195,38551.0,38549.0,0.007]
[1646616777499,0.17602,38550.0,38549.0,0.007]
[1646616777700,0.17602,38550.0,38549.0,0.0001]
[1646616777898,0.17602,38550.0,38549.0,0.00035948]
[1646616778098,0.35513737,38550.0,38549.0,0.00035948]
[1646616778400,0.43611258,38550.0,38549.0,0.21783604]
[1646616778698,0.43611258,38550.0,38549.0,0.21773604]
[1646616778903,0.045,38551.0,38549.0,0.21773604]
[1646616779105,0.21499225,38552.0,38550.0,0.05235937]
[1646616779106,0.00011925,38552.0,38550.0,0.05235937]
[1646616779304,0.16076536,38554.0,38550.0,0.0521]
[1646616779500,0.00011925,38552.0,38550.0,0.0521]
[1646616779697,0.00011925,38552.0,38551.0,0.0002594]
[1646616779899,0.00011925,38552.0,38551.0,0.0523594]
[1646616780350,0.02602,38555.0,38551.0,0.0523594]
[1646616780546,0.07602,38555.0,38554.0,0.0002594]
[1646616780748,0.05,38555.0,38554.0,0.0002594]
[1646616780945,0.07602,38555.0,38554.0,0.0002594]
[1646616781755,0.26191078,38575.0,38554.0,0.0002594]
[1646616781756,0.21485,38565.0,38554.0,0.0002594]
[1646616781953,0.00011655,38556.0,38554.0,0.3]
[1646616782148,0.00046614,38562.0,38557.0,0.0002331]
[1646616782348,0.00046614,38562.0,38558.0,0.0521]